{"text_format":"3","workbook":"xlsx","n_sheets":1,"sheets":["PRICING SCHEDULE"],"not_rendered":{"images":1,"defined_names":2},"read":"whole","date_system":"1900"}

{"sheet":"PRICING SCHEDULE","index":0,"n_rows":27,"n_cols":14,"rows_kept":27,"merged":[[10,3,10,5],[10,6,10,8],[10,9,10,11],[23,1,26,1],[23,3,23,4],[25,3,25,4],[26,3,26,4]]}
[null,"SUPPLY CHAIN MANAGEMENT"]
[null,"Pricing schedule"]
["RFB No","RFB 2719/2022"]
["RFB Title","Request for Bid to the appointment the services supplier to provide waste skip and collection of waste at SITA Gauteng  Buildings for a period of 3 years (36 months)"]
["Bidder Name "]
[]
["1. INSTRUCTION FOR COMPLETING THE PRICING SCHEDULE"]
["(a)  Bidder must complete/enter YELLOW cells only"]
["(b)  Unit and Line prices must be VAT EXCLUSIVE and in South African Rand (ZAR) currency."]
["(c) The price must include all cost to deliver the goods or render the service, including all applicable taxes, logistics/delivery, labour, overtime etc."]
[{"$nulls":3},"Year 1",null,null,"Year 2",null,null,"Year 3",null,null,"TOTAL"]
["Item No","Media Monitoring Services ","Unit of measure","Qty ","Price per month (Excl VAT)","Line Price per year Y1","Qty","Price per month (Excl VAT)","Line Price Y2","Qty","Price per month (Excl VAT)","Line Price Y3","Line Price Term \n(Excl VAT)","Price clarification comment"]
[1,"Provider waste skip and collection of waste",{"$nulls":3},{"$f":"SUBTOTAL(9,F14:F18)","v":0},null,null,{"$f":"SUBTOTAL(9,I14:I18)","v":0},null,null,{"$f":"SUBTOTAL(9,L14:L18)","v":0},{"$f":"F13+I13+L13","v":0}]
["1.1.","Collection from Erasmuskloof","each",2,0,{"$f":"D14*E14*12","v":0},2,0,{"$f":"G14*H14*12","v":0},2,0,{"$f":"J14*K14*12","v":0},{"$f":"SUM(F14,I14,L14)","v":0}]
["1.2","Collection from Centurion","each",1,0,{"$f":"D15*E15*12","v":0},1,0,{"$f":"G15*H15*12","v":0},1,0,{"$f":"J15*K15*12","v":0},{"$f":"SUM(F15,I15,L15)","v":0}]
["1.3","Collection from Numerous ","each",1,0,0,1,0,0,1,0,0,{"$f":"SUM(F16,I16,L16)","v":0}]
["1.4","Collection from BETA ","each",1,0,0,1,0,0,1,0,0,{"$f":"SUM(F17,I17,L17)","v":0}]
["1.5","Adhoc Collection from all four offices (assume 1 additional collection per month) ","each",5,0,0,5,0,0,5,0,0,0]
[null,"TOTAL BID PRICE  (EXCL VAT)",{"$nulls":3},{"$f":"SUBTOTAL(9,F13:F18)","v":0},null,null,{"$f":"SUBTOTAL(9,I13:I18)","v":0},null,null,{"$f":"SUBTOTAL(9,L13:L18)","v":0},{"$f":"M13","v":0}]
[null,"VAT (@15%)",{"$nulls":3},{"$f":"F19*0.15","v":0},null,null,{"$f":"I19*0.15","v":0},null,null,{"$f":"L19*0.15","v":0},{"$f":"M19*0.15","v":0}]
[null,"TOTAL  BID PRICE (INCL VAT)",{"$nulls":3},{"$f":"F19+F20","v":0},null,null,{"$f":"I19+I20","v":0},null,null,{"$f":"L19+L20","v":0},{"$f":"M19+M20","v":0}]
[]
[]
[null,"I, the bidder, confirm that the price(s) and rate(s) quoted cover all the goods and/or works specified in the bidding documents; that the price(s) or rate(s) cover all my obligations and I accept that any mistakes regarding price(s), rate(s) or calculations will be at my own risk.\n[Note: First convert to PDF, then add signature]"]
[null,null,"Name","Capacity:"]
[]
[null,null,"Signature (above)","Date:"]